fUST/lending_fUST_20250821
["ID","MTS","AMOUNT","RATE_DAILY","PERIOD"]
[380472399,1755786649678,-440.0,0.00022191,3]
[380472400,1755786649687,-300.0,0.00022191,3]
[380472401,1755786649696,-629.70302226,0.00022191,3]
[380472402,1755786649706,-151.0,0.00022191,7]
[380472403,1755786649715,-894.59,0.00022191,3]
[380472404,1755786649724,-893.84,0.00022191,3]
[380472405,1755786649733,-4682.98,0.00022191,3]
[380472406,1755786649742,-1248.08,0.00022191,3]
[380472407,1755786649751,-775.7,0.00022191,3]
[380472408,1755786649760,-480.0,0.00022191,3]
[380472409,1755786649770,-1166.65,0.00022191,3]
[380472410,1755786649780,-1057.21,0.00022191,3]
[380472411,1755786649788,-5964.43,0.00022191,3]
[380472412,1755786649796,-480.0,0.00022191,3]
[380472413,1755786649803,-480.0,0.00022191,3]
[380472414,1755786649811,-1838.81113614,0.00022191,3]
[380472415,1755786649993,-557.57886386,0.00022191,3]
[380472416,1755786650004,-208.330593,0.00022191,7]
[380472417,1755786650014,-480.0,0.00022191,3]
[380472418,1755786650024,-480.0,0.00022191,3]
[380472419,1755786650033,-602.31,0.00022191,3]
[380472420,1755786650043,-512.47,0.00022191,3]
[380472421,1755786650052,-797.52,0.00022191,3]
[380472422,1755786650061,-480.0,0.00022191,3]
[380472423,1755786650071,-480.0,0.00022191,3]
[380472424,1755786650080,-1834.51,0.00022191,3]
[380472425,1755786650090,-604.04,0.00022191,3]
[380472426,1755786650099,-480.0,0.00022191,3]
[380472427,1755786650108,-480.0,0.00022191,3]
[380472428,1755786650117,-480.0,0.00022191,3]
[380472429,1755786650126,-1640.98,0.00022191,3]
[380472430,1755786650136,-480.0,0.00022191,3]
[380472431,1755786650146,-480.0,0.00022191,3]
[380472432,1755786650156,-480.0,0.00022191,3]
[380472433,1755786650167,-480.0,0.00022191,3]
[380472434,1755786650177,-480.0,0.00022191,3]
[380472435,1755786650186,-480.0,0.00022191,3]
[380472436,1755786650195,-518.98,0.00022191,3]
[380472437,1755786650205,-1428.43,0.00022191,3]
[380472438,1755786650214,-480.0,0.00022191,3]
[380472439,1755786650224,-480.0,0.00022191,3]
[380472440,1755786650233,-420.0,0.00022191,3]
[380472441,1755786650243,-480.0,0.00022191,3]
[380472442,1755786650252,-1363.43,0.00022191,3]
[380472443,1755786650262,-480.0,0.00022191,3]
[380472444,1755786650272,-10031.76,0.00022191,3]
[380472445,1755786650282,-1315.65,0.00022191,3]
[380472446,1755786650291,-151.0,0.00022191,7]
[380472447,1755786650301,-151.0,0.00022191,7]
[380472448,1755786650310,-655.56,0.00022191,3]
[380472449,1755786650320,-151.14480658,0.00022191,3]
[380472450,1755786650346,-2470.15519342,0.00022191,3]
[380472451,1755786650355,-480.0,0.00022191,3]
[380472452,1755786650365,-79.9965222,0.00022191,3]
[380472453,1755786650610,-715.6763441,0.00021917,3]
[380472454,1755786650627,-872.9536559,0.00021917,3]
[380472455,1755786650637,-480.0,0.00021917,3]
[380472456,1755786650646,-481.43,0.00021917,3]
[380472457,1755786650657,-480.0,0.00021917,3]
[380472458,1755786650667,-1359.0134778,0.00022191,3]
[380472459,1755786650677,-965.24,0.00022191,3]
[380472460,1755786650686,-480.0,0.00022191,3]
[380472461,1755786650697,-480.0,0.00022191,3]
[380472462,1755786650706,-3532.12452212,0.00022191,3]
[380472463,1755786650718,-1646.57547788,0.00022191,3]
[380472464,1755786650728,-480.0,0.00022191,3]
[380472465,1755786650738,-1046.1,0.00022191,3]
[380472466,1755786650748,-480.0,0.00022191,3]
[380472467,1755786650758,-700.36,0.00022191,3]
[380472468,1755786650768,-490.97,0.00022191,3]
[380472469,1755786650778,-5086.71,0.00022191,3]
[380472470,1755786650789,-480.0,0.00022191,3]
[380472471,1755786650798,-480.0,0.00022191,3]
[380472472,1755786650808,-480.0,0.00022191,3]
[380472473,1755786650817,-480.0,0.00022191,3]
[380472474,1755786650827,-2535.73,0.00022191,3]
[380472475,1755786650836,-480.0,0.00022191,3]
[380472476,1755786650845,-480.0,0.00022191,3]
[380472477,1755786650855,-936.56,0.00022191,3]
[380472478,1755786650865,-570.12,0.00022191,3]
[380472479,1755786650874,-10136.4,0.00022191,3]
[380472480,1755786650884,-1747.16,0.00022191,3]
[380472481,1755786650894,-480.0,0.00022191,3]
[380472482,1755786650903,-480.0,0.00022191,3]
[380472483,1755786650914,-5154.43,0.00022191,3]
[380472484,1755786650924,-480.0,0.00022191,3]
[380472488,1755786651098,-1120.12,0.00022191,3]
[380472489,1755786651108,-524.83,0.00022191,3]
[380472490,1755786651117,-578.24,0.00022191,3]
[380472491,1755786651127,-151.0,0.00022191,7]
[380472492,1755786651137,-480.0,0.00022191,3]
[380472493,1755786651147,-1706.48,0.00022191,3]
[380472494,1755786651158,-427.14052315,0.00022191,3]
[380472495,1755786651168,-480.84,0.00022191,3]
[380472496,1755786651178,-480.0,0.00022191,3]
[380472497,1755786651189,-3184.72,0.00022191,3]
[380472499,1755786651198,-480.0,0.00022191,3]
[380472500,1755786651209,-1481.83,0.00022191,3]
[380472501,1755786651219,-10660.26963064,0.00022191,3]
[380472502,1755786651231,-599.35,0.00022191,3]
[380472503,1755786651807,-302.907251,0.00020976,2]
[380472504,1755786651817,-342.49314198,0.00021707,10]
[380472505,1755786651828,-325.24589229,0.00021707,10]
[380472506,1755786651842,-191.61096573,0.00021707,10]
[380472507,1755786651851,-615.63037563,0.00021917,3]
[380472508,1755786651861,-327.45988557,0.00021917,3]
[380472515,1755786652456,-1030.357673,0.000219,2]
[380472517,1755786652468,-803.84046595,0.000219,2]
[380472518,1755786652477,-152.54011443,0.00021917,3]
[380472519,1755786652487,-480.0,0.00021917,3]
[380472520,1755786652496,-480.0,0.00021917,3]
[380472521,1755786652506,-480.0,0.00021917,3]
[380472522,1755786652516,-480.0,0.00021917,3]
[380472523,1755786652526,-480.0,0.00021917,3]
[380472524,1755786652535,-480.0,0.00021917,3]
[380472525,1755786652544,-480.0,0.00021917,3]
[380472526,1755786652553,-480.0,0.00021917,3]
[380472527,1755786652563,-480.0,0.00021917,3]
[380472528,1755786652572,-480.0,0.00021917,3]
[380472529,1755786652581,-460.57860834,0.00021917,3]
[380472530,1755786652591,-4004.65036936,0.00022191,3]
[380472531,1755786652602,-2245.83,0.00022191,3]
[380472532,1755786652613,-480.0,0.00022191,3]
[380472533,1755786652622,-2101.53470636,0.00022191,3]
[380472534,1755786652633,-806.64838715,0.00022191,3]
[380472536,1755786652644,-2505.60000049,0.00022191,3]
[380472537,1755786652662,-480.0,0.00021917,3]
[380472538,1755786652671,-1956.386906,0.00022191,3]
[380472539,1755786652681,-4469.62,0.00022191,3]
[380472540,1755786652690,-480.0,0.00022191,3]
[380472541,1755786652700,-816.98,0.00022191,3]
[380472542,1755786652709,-586.58,0.00022191,3]
[380472543,1755786652718,-480.0,0.00022191,3]
[380472544,1755786652727,-539.94,0.00022191,3]
[380472545,1755786652737,-2110.67,0.00022191,3]
[380472546,1755786652746,-480.0,0.00022191,3]
[380472547,1755786652755,-480.0,0.00022191,3]
[380472548,1755786652764,-819.75,0.00022191,3]
[380472549,1755786652774,-151.0,0.00022191,7]
[380472550,1755786652783,-1913.92,0.00022191,3]
[380472551,1755786652792,-151.0,0.00022191,7]
[380472552,1755786652802,-4296.17,0.00022191,3]
[380472553,1755786652811,-480.0,0.00022191,3]
[380472554,1755786652821,-700.85,0.00022191,3]
[380472555,1755786652831,-363.74876463,0.00022191,3]
[380472556,1755786652840,-480.0,0.00022191,3]
[380472557,1755786652849,-480.0,0.00022191,3]
[380472558,1755786652859,-480.0,0.00022191,3]
[380472559,1755786652868,-480.0,0.00022191,3]
[380472560,1755786652877,-480.0,0.00022191,3]
[380472561,1755786652887,-822.4,0.00022191,3]
[380472562,1755786652896,-421.84080345,0.00022191,3]
[380472563,1755786652905,-480.0,0.00022191,3]
[380472564,1755786652917,-734.04,0.00022191,3]
[380472565,1755786652927,-1588.63,0.00022191,3]
[380472566,1755786652936,-480.0,0.00022191,3]
[380472567,1755786652945,-480.0,0.00022191,3]
[380472568,1755786652954,-164.91004398,0.00022192,2]
[380472569,1755786652963,-6539.18217494,0.00022225,2]
[380472570,1755786652972,-500.0,0.00022301,8]
[380472571,1755786652982,-500.0,0.00022301,8]
[380472572,1755786652991,-164.91004398,0.00022329,2]
[380472573,1755786653000,-168.0,0.00022361,2]
[380472574,1755786653009,-527.25536521,0.00022365,2]
[380472575,1755786653019,-323.3825699,0.00022438,2]
[380472576,1755786653028,-153.0,0.00022438,2]
[380472577,1755786653037,-581.1080994,0.00022438,2]
[380472578,1755786653046,-581.1080994,0.00022438,2]
[380472579,1755786653055,-581.1080994,0.00022438,2]
[380472580,1755786653065,-581.1080994,0.00022438,2]
[380472581,1755786653075,-578.0226684,0.00022438,2]
[380472582,1755786653084,-168.0,0.00022465,2]
[380472583,1755786653093,-480.0,0.00022465,3]
[380472584,1755786653103,-137.70349191,0.00022465,3]
[380472661,1755786888882,1000.0,0.000274,60]
[380472662,1755786910516,1296.98,0.000274,60]
[380472667,1755787129239,325.351895,0.00013699,2]
[380472699,1755787402740,179.7,0.00027397,120]
[380472704,1755787637138,-1503.98412396,0.000199,2]
[380472705,1755787637158,-150.0,0.00020092,2]
[380472706,1755787637178,-171.908162,0.00020141,2]
[380472707,1755787637199,-325.351895,0.00020187,2]
[380472708,1755787637232,-1631.36782,0.0002023,2]
[380472709,1755787637255,-1000.0,0.00020416,2]
[380472710,1755787637276,-300.0,0.00020876,2]
[380472711,1755787637296,-300.0,0.00020876,2]
[380472712,1755787637316,-6370.53348504,0.00020877,2]
[380472714,1755787646241,-2642.89595106,0.00020877,2]
[380472715,1755787646267,-10192.1987206,0.00020968,2]
[380472716,1755787646288,-844.19128999,0.00021084,2]
[380472717,1755787646310,-215.86710461,0.00021084,2]
[380472718,1755787646332,-216.95272161,0.00021155,2]
[380472719,1755787646355,-195.711163,0.00021259,2]
[380472720,1755787646376,-500.0,0.00021716,2]
[380472721,1755787646400,-1503.98412395,0.00021771,2]
[380472722,1755787646420,-391.62604757,0.00021791,2]
[380472723,1755787646441,-151.0,0.00021804,2]
[380472724,1755787646463,-30459.66239948,0.00021817,2]
[380472725,1755787646483,-2386.13014737,0.00021817,3]
[380472726,1755787646503,-4641.12012876,0.00021817,2]
[380472727,1755787646526,-4305.42209533,0.00021882,2]
[380472728,1755787789217,219.0,0.00027397,120]
[380472729,1755787799112,500.0,0.00027417,60]
[380472758,1755787836001,-1403.71851588,0.000199,2]
[380472760,1755787836012,-302.9072528,0.00020893,2]
[380472761,1755787836022,-1403.71851568,0.00021771,2]
[380472762,1755787836032,-88.72142738,0.00021791,2]
[380472763,1755787836044,-107.0915964,0.00021791,2]
[380472764,1755787836054,-1039.3084036,0.00021817,2]
[380472765,1755787836065,-107.06543327,0.00021817,2]
[380472766,1755787836075,-369.68271794,0.00021882,2]
[380472767,1755787836084,-844.19128999,0.0002189,2]
[380472768,1755787836094,-216.95272161,0.0002189,2]
[380472769,1755787836104,-561.64,0.000219,22]
[380472770,1755787836114,-300.0,0.00021906,2]
[380472771,1755787836124,-1023.0,0.00021906,2]
[380472772,1755787836133,-2072.55,0.00021907,3]
[380472773,1755787836144,-1036.27,0.00021907,3]
[380472774,1755787836153,-518.14,0.00021907,3]
[380472776,1755787836164,-259.07,0.00021907,3]
[380472777,1755787836173,-777.22,0.00021907,3]
[380472778,1755787836183,-500.0,0.00021916,2]
[380472779,1755787836193,-178.6382707,0.00021916,2]
[380472780,1755787836840,365.15,0.00027397,120]
[380472807,1755787838685,-821.3617293,0.00021916,2]
[380472809,1755787838695,-1000.0,0.00021916,2]
[380472811,1755787838705,-1000.0,0.00021916,2]
[380472813,1755787838714,-1000.0,0.00021916,2]
[380472815,1755787838723,-1000.0,0.00021916,2]
[380472817,1755787838732,-1000.0,0.00021916,2]
[380472819,1755787838741,-1000.0,0.00021916,2]
[380472821,1755787838751,-475.58253823,0.00021916,2]
[380472823,1755787838760,-480.0,0.00021917,3]
[380472825,1755787838770,-480.0,0.00021917,3]
[380472827,1755787838779,-521.4952272,0.00021917,3]
[380472829,1755787838789,-480.0,0.00021917,3]
[380472832,1755787838798,-480.0,0.00021917,3]
[380472836,1755787838808,-441.20300805,0.00021917,3]
[380472839,1755787838818,-705.08,0.00021917,3]
[380472841,1755787838826,-480.0,0.00021917,3]
[380472843,1755787838836,-480.0,0.00021917,3]
[380472845,1755787838846,-231.62408221,0.00021917,3]
[380472846,1755787838856,-480.0,0.00021917,3]
[380472849,1755787838867,-770.38,0.00021917,3]
[380472851,1755787838879,-344.31206177,0.00021917,3]
[380472852,1755787838888,-600.91,0.00021917,3]
[380472854,1755787838898,-480.0,0.00021917,3]
[380472856,1755787838912,-712.66,0.00021917,3]
[380472858,1755787838923,-480.0,0.00021917,3]
[380472861,1755787838936,-179.63675063,0.00021917,3]
[380472865,1755787838958,-316.32324937,0.00021917,3]
[380472867,1755787838968,-480.0,0.00021917,3]
[380472870,1755787838978,-563.64,0.00021917,3]
[380472872,1755787838988,-610.0,0.00021917,3]
[380472874,1755787838999,-480.0,0.00021917,3]
[380472877,1755787839009,-97.24323966,0.00021917,3]
[380472879,1755787839031,-326.4337061,0.00021917,3]
[380472881,1755787839041,-480.0,0.00021917,3]
[380472883,1755787839051,-1000.0,0.00021917,3]
[380472885,1755787839061,-480.0,0.00021917,3]
[380472887,1755787839079,-480.0,0.00021917,3]
[380472889,1755787839092,-480.0,0.00021917,3]
[380472891,1755787839101,-480.0,0.00021917,3]
[380472893,1755787839110,-480.0,0.00021917,3]
[380472895,1755787839127,-480.0,0.00021917,3]
[380472897,1755787839144,-480.0,0.00021917,3]
[380472899,1755787839163,-480.0,0.00021917,3]
[380472901,1755787839177,-480.0,0.00021917,3]
[380472903,1755787839187,-465.41724905,0.00021917,3]
[380472905,1755787839196,-480.0,0.00021917,3]
[380472907,1755787839205,-480.0,0.00021917,3]
[380472909,1755787839215,-480.0,0.00021917,3]
[380472911,1755787839225,-480.0,0.00021917,3]
[380472913,1755787839234,-480.0,0.00021917,3]
[380472915,1755787839244,-500.0,0.00021917,3]
[380472918,1755787839254,-567.12,0.00021917,3]
[380472919,1755787839263,-500.0,0.00021917,3]
[380472921,1755787839273,-324.52406751,0.00021917,3]
[380472923,1755787839283,-480.0,0.00021917,3]
[380472925,1755787839295,-480.0,0.00021917,3]
[380472927,1755787839305,-480.2319401,0.00021917,3]
[380472929,1755787839315,-606.82160585,0.00021917,3]
[380472931,1755787839325,-480.0,0.00021917,3]
[380472934,1755787839335,-480.0,0.00021917,3]
[380472935,1755787839345,-480.0,0.00021917,3]
[380472938,1755787839354,-482.05012785,0.00021917,3]
[380472940,1755787839364,-480.0,0.00021917,3]
[380472942,1755787839374,-480.0,0.00021917,3]
[380472944,1755787839383,-480.0,0.00021917,3]
[380472945,1755787839393,-480.0,0.00021917,3]
[380472948,1755787839403,-480.0,0.00021917,3]
[380472950,1755787839412,-480.0,0.00021917,3]
[380472952,1755787839423,-480.0,0.00021917,3]
[380472954,1755787839432,-480.0,0.00021917,3]
[380472956,1755787839441,-480.0,0.00021917,3]
[380472958,1755787839451,-365.19038225,0.00021917,3]
[380472959,1755787839461,-480.0,0.00021917,3]
[380472961,1755787839470,-469.17997011,0.00021917,3]
[380472963,1755787839480,-480.0,0.00021917,3]
[380472965,1755787839489,-480.0,0.00021917,3]
[380472967,1755787839499,-480.0,0.00021917,3]
[380472969,1755787839508,-480.0,0.00021917,3]
[380472971,1755787839519,-480.0,0.00021917,3]
[380472973,1755787839528,-480.0,0.00021917,3]
[380472975,1755787839538,-568.64747988,0.00021917,3]
[380472977,1755787839547,-480.0,0.00021917,3]
[380472979,1755787839556,-377.6067015,0.00021917,3]
[380472981,1755787839565,-480.0,0.00021917,3]
[380472983,1755787839575,-480.0,0.00021917,3]
[380472985,1755787839584,-886.25,0.00021917,3]
[380472987,1755787839593,-480.0,0.00021917,3]
[380472989,1755787839602,-480.0,0.00021917,3]
[380472991,1755787839611,-892.14,0.00021917,3]
[380472993,1755787839620,-480.0,0.00021917,3]
[380472995,1755787839630,-1062.96,0.00021917,3]
[380472997,1755787839639,-979.25,0.00021917,2]
[380472999,1755787839650,-1294.3,0.00021917,3]
[380473001,1755787839659,-480.0,0.00021917,3]
[380473003,1755787839670,-480.0,0.00021917,3]
[380473005,1755787839679,-480.0,0.00021917,3]
[380473007,1755787839688,-480.0,0.00021917,3]
[380473009,1755787839698,-480.0,0.00021917,3]
[380473011,1755787839707,-795.32,0.00021917,3]
[380473013,1755787839716,-680.99,0.00021917,3]
[380473015,1755787839725,-793.22,0.00021917,3]
[380473017,1755787839734,-480.0,0.00021917,3]
[380473019,1755787839743,-480.0,0.00021917,3]
[380473021,1755787839752,-480.0,0.00021917,3]
[380473023,1755787839762,-480.0,0.00021917,3]
[380473025,1755787839771,-480.0,0.00021917,3]
[380473027,1755787839780,-480.0,0.00021917,3]
[380473029,1755787839789,-42.53845128,0.00021917,3]
[380473032,1755787839807,-437.46154872,0.00021917,3]
[380473034,1755787839817,-480.0,0.00021917,3]
[380473036,1755787839826,-480.0,0.00021917,3]
[380473038,1755787839835,-1997.31,0.00021917,3]
[380473040,1755787839845,-480.0,0.00021917,3]
[380473042,1755787839855,-480.0,0.00021917,3]
[380473044,1755787839864,-851.09,0.00021917,3]
[380473046,1755787839873,-480.0,0.00021917,3]
[380473048,1755787839882,-45.63845128,0.00021917,3]
[380473051,1755787839895,-434.36154872,0.00021917,3]
[380473053,1755787839905,-1086.67,0.00021917,3]
[380473055,1755787839917,-190.486243,0.00021917,2]
[380473057,1755787839927,-480.0,0.00021917,3]
[380473059,1755787839938,-480.0,0.00021917,3]
[380473061,1755787839949,-919.88,0.00021917,3]
[380473063,1755787839959,-1181.71,0.00021917,3]
[380473065,1755787839969,-682.44,0.00021917,3]
[380473067,1755787839979,-480.0,0.00021917,3]
[380473069,1755787839988,-480.0,0.00021917,3]
[380473071,1755787839998,-480.0,0.00021917,3]
[380473072,1755787840007,-557.15705024,0.00021917,3]
[380473074,1755787840017,-480.0,0.00021917,3]
[380473076,1755787840027,-553.3,0.00021917,3]
[380473078,1755787840037,-480.0,0.00021917,3]
[380473080,1755787840046,-480.0,0.00021917,3]
[380473082,1755787840056,-480.0,0.00021917,3]
[380473084,1755787840065,-480.0,0.00021917,3]
[380473086,1755787840075,-480.0,0.00021917,3]
[380473088,1755787840085,-1286.83,0.00021917,3]
[380473090,1755787840095,-480.0,0.00021917,3]
[380473092,1755787840105,-1272.94,0.00021917,3]
[380473094,1755787840114,-480.0,0.00021917,3]
[380473096,1755787840125,-2073.13,0.00021917,3]
[380473098,1755787840134,-480.0,0.00021917,3]
[380473100,1755787840145,-480.0,0.00021917,3]
[380473102,1755787840155,-480.0,0.00021917,3]
[380473105,1755787840167,-599.11,0.00021917,3]
[380473107,1755787840177,-1767.33,0.00021917,3]
[380473109,1755787840187,-480.0,0.00021917,3]
[380473111,1755787840200,-641.4,0.00021917,3]
[380473113,1755787840211,-480.0,0.00021917,3]
[380473115,1755787840220,-480.0,0.00021917,3]
[380473117,1755787840230,-480.0,0.00021917,3]
[380473119,1755787840240,-480.0,0.00021917,3]
[380473121,1755787840250,-572.34,0.00021917,3]
[380473122,1755787840261,-480.0,0.00021917,3]
[380473125,1755787840271,-151.0,0.00021917,2]
[380473127,1755787840281,-480.0,0.00021917,3]
[380473129,1755787840291,-480.0,0.00021917,3]
[380473131,1755787840300,-480.0,0.00021917,3]
[380473133,1755787840312,-480.0,0.00021917,3]
[380473135,1755787840321,-480.0,0.00021917,3]
[380473137,1755787840331,-178.959851,0.00021917,2]
[380473139,1755787840340,-407.92651741,0.00021917,3]
[380473140,1755787840350,-480.0,0.00021917,3]
[380473142,1755787840359,-480.0,0.00021917,3]
[380473144,1755787840369,-480.0,0.00021917,3]
[380473146,1755787840379,-480.0,0.00021917,3]
[380473147,1755787840389,-480.0,0.00021917,3]
[380473150,1755787840400,-508.50592863,0.00021917,3]
[380473152,1755787840410,-460.77083845,0.00021917,3]
[380473154,1755787840422,-218.44628599,0.00021917,3]
[380473156,1755787840437,-261.55371401,0.00021917,3]
[380473158,1755787840446,-480.0,0.00021917,3]
[380473160,1755787840456,-480.0,0.00021917,3]
[380473162,1755787840465,-480.0,0.00021917,3]
[380473164,1755787840474,-661.84,0.00021917,3]
[380473166,1755787840484,-655.68,0.00021917,3]
[380473168,1755787840494,-480.0,0.00021917,3]
[380473170,1755787840504,-480.0,0.00021917,3]
[380473172,1755787840514,-480.0,0.00021917,3]
[380473174,1755787840523,-480.0,0.00021917,3]
[380473176,1755787840536,-424.13394678,0.00021917,3]
[380473178,1755787840548,-294.37542558,0.00021917,3]
[380473180,1755787840558,-500.0,0.00021917,3]
[380473182,1755787840567,-500.0,0.00021917,3]
[380473184,1755787840576,-501.6316782,0.00021917,3]
[380473186,1755787840586,-418.45586226,0.00021917,3]
[380473188,1755787840598,-61.54413774,0.00021917,3]
[380473190,1755787840607,-480.0,0.00021917,3]
[380473192,1755787840617,-480.0,0.00021917,3]
[380473194,1755787840627,-42.42302898,0.00021917,3]
[380473203,1755787840708,-437.57697102,0.00021917,3]
[380473205,1755787840718,-74.95829863,0.00021917,3]
[380473209,1755787840730,-405.04170137,0.00021917,3]
[380473211,1755787840740,-322.73942384,0.00021917,3]
[380473215,1755787840751,-157.26057616,0.00021917,3]
[380473218,1755787840761,-460.0,0.00021917,3]
[380473221,1755787840771,-480.0,0.00021917,3]
[380473224,1755787840786,-480.0,0.00021917,3]
[380473227,1755787840796,-865.24,0.00021917,3]
[380473230,1755787840805,-481.16572628,0.00021917,3]
[380473233,1755787840815,-480.0,0.00021917,3]
[380473236,1755787840824,-563.56,0.00021917,3]
[380473239,1755787840834,-480.0,0.00021917,3]
[380473242,1755787840843,-620.28,0.00021917,3]
[380473244,1755787840852,-480.0,0.00021917,3]
[380473248,1755787840862,-480.0,0.00021917,3]
[380473251,1755787840872,-480.0,0.00021917,3]
[380473254,1755787840881,-480.0,0.00021917,3]
[380473257,1755787840891,-480.0,0.00021917,3]
[380473259,1755787840900,-480.0,0.00021917,3]
[380473261,1755787840910,-480.0,0.00021917,3]
[380473263,1755787840921,-659.28,0.00021917,3]
[380473265,1755787840931,-480.0,0.00021917,3]
[380473267,1755787840944,-480.0,0.00021917,3]
[380473269,1755787840954,-480.0,0.00021917,3]
[380473271,1755787840963,-480.0,0.00021917,3]
[380473273,1755787840975,-1021.27,0.00021917,3]
[380473275,1755787840985,-480.0,0.00021917,3]
[380473277,1755787840995,-750.97,0.00021917,3]
[380473279,1755787841004,-480.0,0.00021917,3]
[380473281,1755787841014,-480.0,0.00021917,3]
[380473283,1755787841024,-681.78,0.00021917,3]
[380473285,1755787841035,-480.0,0.00021917,3]
[380473287,1755787841044,-480.0,0.00021917,3]
[380473289,1755787841054,-480.0,0.00021917,3]
[380473291,1755787841064,-480.0,0.00021917,3]
[380473293,1755787841073,-480.0,0.00021917,3]
[380473295,1755787841083,-480.0,0.00021917,3]
[380473297,1755787841092,-619.11,0.00021917,3]
[380473299,1755787841102,-956.56111356,0.00021917,3]
[380473301,1755787841116,-1412.04888644,0.00021917,3]
[380473303,1755787841126,-480.0,0.00021917,3]
[380473305,1755787841135,-480.53698419,0.00021917,3]
[380473307,1755787841146,-460.36382717,0.00021917,3]
[380473309,1755787841156,-490.9,0.00021917,3]
[380473311,1755787841166,-1994.63,0.00021917,3]
[380473313,1755787841177,-480.0,0.00021917,3]
[380473315,1755787841187,-561.39,0.00021917,3]
[380473317,1755787841197,-480.0,0.00021917,3]
[380473319,1755787841206,-480.0,0.00021917,3]
[380473321,1755787841216,-480.0,0.00021917,3]
[380473323,1755787841227,-480.0,0.00021917,3]
[380473325,1755787841236,-480.0,0.00021917,3]
[380473327,1755787841246,-480.0,0.00021917,3]
[380473329,1755787841256,-480.0,0.00021917,3]
[380473331,1755787841265,-960.65,0.00021917,3]
[380473333,1755787841275,-517.36,0.00021917,3]
[380473335,1755787841285,-532.15,0.00021917,3]
[380473337,1755787841296,-933.35,0.00021917,3]
[380473339,1755787841306,-585.79,0.00021917,3]
[380473341,1755787841315,-756.8,0.00021917,3]
[380473343,1755787841325,-1677.63,0.00021917,3]
[380473345,1755787841335,-480.0,0.00021917,3]
[380473347,1755787841345,-480.0,0.00021917,3]
[380473349,1755787841355,-480.0,0.00021917,3]
[380473351,1755787841365,-1012.07,0.00021917,3]
[380473352,1755787841376,-617.64,0.00021917,3]
[380473353,1755787841387,-698.4,0.00021917,3]
[380473354,1755787841397,-480.0,0.00021917,3]
[380473355,1755787841407,-2237.68,0.00021917,3]
[380473356,1755787841418,-480.0,0.00021917,3]
[380473357,1755787841428,-480.0,0.00021917,3]
[380473358,1755787841438,-1330.24,0.00021917,3]
[380473359,1755787841448,-480.0,0.00021917,3]
[380473360,1755787841458,-157.92123922,0.00021917,3]
[380473361,1755787841467,-480.0,0.00021917,3]
[380473362,1755787841477,-480.0,0.00021917,3]
[380473363,1755787841487,-881.21,0.00021917,3]
[380473364,1755787841497,-142.02263698,0.00021917,3]
[380473365,1755787841511,-1240.53736302,0.00021917,3]
[380473366,1755787841521,-480.58160674,0.00021917,3]
[380473367,1755787841531,-480.0,0.00021917,3]
[380473368,1755787841540,-480.0,0.00021917,3]
[380473369,1755787841549,-151.0,0.00021917,2]
[380473370,1755787841559,-480.0,0.00021917,3]
[380473372,1755787841568,-735.6,0.00021917,3]